bitfinex/quotes_SOLUSD_20250429
["timestamp","ask_amount","ask_price","bid_price","bid_amount"]
[1745928258171,18.63904985,149.05,149.04,0.063]
[1745928264264,29.72720441,149.05,149.04,0.063]
[1745928264766,18.63904985,149.05,149.04,0.063]
[1745928267544,14.65961182,149.05,149.04,0.063]
[1745928270250,1.5577,149.04,149.02,0.063]
[1745928270457,36.38531994,149.03,149.02,0.063]
[1745928271465,7.95045382,149.03,149.02,0.063]
[1745928271677,23.05578729,149.03,149.02,0.063]
[1745928272572,29.76584566,149.03,149.02,0.063]
[1745928278155,11.107025,149.03,149.02,0.063]
[1745928282691,22.21405,149.03,149.02,0.063]
[1745928282869,28.92410837,149.03,149.02,0.063]
[1745928283072,29.76584566,149.03,149.02,0.063]
[1745928284598,28.92410837,149.03,149.02,0.063]
[1745928291476,35.5533077,149.03,149.02,0.063]
[1745928291686,36.39504499,149.03,149.02,0.063]
[1745928293597,43.10510336,149.03,149.02,0.063]
[1745928299992,82.837,149.01,149.0,0.063]
[1745928300308,7.95239883,149.01,149.0,0.063]
[1745928301094,14.66335782,149.01,149.0,0.063]
[1745928324516,7.11066154,149.01,149.0,0.063]
[1745928332935,90.01066154,149.02,149.0,0.063]
[1745928333240,82.9,149.02,149.0,0.20516157]
[1745928333606,82.9,149.02,149.0,7.31582311]
[1745928333810,82.9,149.02,149.01,7.25282311]
[1745928334121,82.9,149.02,149.01,15.06792311]
[1745928335029,82.9,149.02,149.01,21.7788821]
[1745928337408,116.04066154,149.07,149.01,21.7788821]
[1745928337611,82.9,149.06,149.03,7.11066154]
[1745928338722,82.9,149.06,149.05,7.25282311]
[1745928338928,0.03,149.07,149.05,7.25282311]
[1745928339129,0.03,149.07,149.06,6.85086947]
[1745928339601,0.03,149.07,149.06,13.96153101]
[1745928340408,0.03,149.07,149.06,40.42077987]
[1745928343544,0.03,149.07,149.06,44.39757142]
[1745928346732,1e-08,149.07,149.06,44.39757142]
[1745928346939,0.03,149.1,149.08,0.14216157]
[1745928347145,0.03,149.1,149.09,35.35706775]
[1745928347317,0.03,149.11,149.1,0.14216157]
[1745928347509,0.03,149.11,149.1,22.31706775]
[1745928347711,0.03,149.11,149.1,47.06581661]
[1745928347929,1e-08,149.11,149.1,47.06581661]
[1745928348245,1e-08,149.11,149.1,48.61501661]
[1745928348911,1e-08,149.11,149.1,55.32192472]
[1745928360248,1e-08,149.12,149.11,18.79181043]
[1745928360443,1e-08,149.12,149.11,29.87926352]
[1745928362228,1e-08,149.12,149.11,31.21992547]
[1745928362420,1e-08,149.12,149.11,63.92638378]
[1745928366523,0.03,149.17,149.15,18.79181043]
[1745928366741,0.03,149.17,149.15,42.89926352]
[1745928368526,0.03,149.17,149.15,49.60392325]
[1745928370428,0.03,149.17,149.16,11.22961466]
[1745928370626,0.03,149.17,149.16,17.9338249]
[1745928370831,0.03,149.18,149.16,49.0112854]
[1745928371047,0.03,149.18,149.17,22.31706775]
[1745928371254,0.03,149.18,149.17,11.22961466]
[1745928373654,0.03,149.18,149.17,17.93337546]
[1745928380558,0.03,149.18,149.17,36.58302432]
[1745928384480,0.03,149.19,149.18,0.14216157]
[1745928384685,1e-08,149.2,149.19,29.87926352]
[1745928384855,1e-08,149.2,149.19,36.58212564]
[1745928385968,1e-08,149.21,149.2,0.14216157]
[1745928386171,1e-08,149.21,149.2,24.24961466]
[1745928386783,0.0792768,149.24,149.23,26.14216157]
[1745928387088,0.03,149.27,149.26,44.79181043]
[1745928387089,1e-08,149.27,149.26,44.79181043]
[1745928387275,1e-08,149.27,149.26,68.89926352]
[1745928387586,0.03,149.33,149.27,18.79181043]
[1745928387760,0.03,149.33,149.32,11.22961466]
[1745928387955,0.03,149.33,149.32,6.83918809]
[1745928388385,0.03,149.33,149.32,17.92664118]
[1745928391366,0.03,149.33,149.32,36.57629004]
[1745928391681,0.03,149.35,149.33,18.79181043]
[1745928391856,0.03,149.35,149.34,11.22961466]
[1745928392058,0.03,149.35,149.34,36.57539315]
[1745928392988,0.03,149.35,149.34,17.92574429]
[1745928396487,0.03,149.35,149.34,6.8382912]
[1745928396782,0.03,149.35,149.34,17.92574429]
[1745928398185,0.03,149.35,149.34,6.8382912]
[1745928402914,11.11745309,149.35,149.32,6.69702652]
[1745928403069,11.08745309,149.33,149.31,19.71729865]
[1745928403392,11.08745309,149.32,149.31,13.02]
[1745928403899,11.08745309,149.32,149.29,6.69820242]
[1745928404098,11.08745309,149.31,149.29,6.69820242]
[1745928404685,11.08745309,149.31,149.29,0.14216157]
[1745928404996,11.08745309,149.31,149.28,6.698821]
[1745928405508,11.08745309,149.29,149.27,19.86208532]
[1745928406008,11.08745309,149.29,149.28,0.14216157]
[1745928406209,82.9,149.28,149.27,13.163]
[1745928406372,93.98745309,149.28,149.27,13.163]
[1745928406696,93.98745309,149.28,149.27,0.063]
[1745928407515,11.08745309,149.28,149.27,0.063]
[1745928407802,17.60665309,149.28,149.27,0.063]
[1745928408097,25.87427409,149.28,149.21,6.70181616]
[1745928408409,11.08745309,149.24,149.21,6.70181616]
[1745928408886,11.08745309,149.24,149.21,0.14216157]
[1745928409596,11.08745309,149.24,149.2,17.78986595]
[1745928409806,82.9,149.27,149.23,11.08745309]
[1745928409975,93.98745309,149.27,149.24,0.14216157]
[1745928410175,82.9,149.27,149.24,11.22961466]
[1745928410700,93.98745309,149.27,149.24,0.14216157]
[1745928411004,93.98745309,149.27,149.26,0.14216157]
[1745928413107,93.98745309,149.27,149.26,6.84188018]
[1745928416611,93.98745309,149.27,149.26,0.14216157]
[1745928416986,93.98745309,149.27,149.23,0.14216157]
[1745928417187,11.08745309,149.25,149.24,6.70061645]
[1745928417593,11.08745309,149.25,149.24,6.84277802]
[1745928420718,11.08745309,149.26,149.25,0.14216157]
[1745928420922,93.98745309,149.26,149.25,0.14216157]
[1745928421810,93.98745309,149.26,149.2,11.08745309]
[1745928422118,11.08745309,149.24,149.21,0.14216157]
[1745928422486,11.08745309,149.24,149.21,6.84412524]
[1745928423016,82.9,149.25,149.21,6.84412524]
[1745928423017,11.08745309,149.23,149.21,6.84412524]
[1745928423826,11.08745309,149.22,149.21,6.70196367]
[1745928424123,11.08745309,149.22,149.21,6.84412524]
[1745928424292,11.08745309,149.22,149.21,0.14216157]
[1745928424790,11.08745309,149.22,149.2,6.70214129]
[1745928424989,11.08745309,149.22,149.21,0.14216157]
[1745928427212,11.08745309,149.22,149.21,6.84412524]
[1745928427410,11.08745309,149.22,149.21,0.14216157]
[1745928427790,11.08745309,149.22,149.21,6.84412524]
[1745928428304,11.08745309,149.22,149.21,0.14216157]
[1745928428615,11.08745309,149.22,149.21,6.84412524]
[1745928429216,11.08745309,149.22,149.21,0.14216157]
[1745928430587,11.08745309,149.22,149.19,19.82265944]
[1745928430786,11.08745309,149.21,149.2,0.14216157]
[1745928435528,11.08745309,149.21,149.2,6.84457443]
[1745928435695,11.08745309,149.21,149.16,11.22961466]
[1745928435894,93.98745309,149.2,149.16,11.22961466]
[1745928436819,11.08745309,149.2,149.16,11.22961466]
[1745928437027,11.08745309,149.2,149.16,17.9338249]
[1745928437198,11.08745309,149.2,149.16,34.69435051]
[1745928438099,11.08745309,149.21,149.18,0.14216157]
[1745928439034,1.5933,149.23,149.2,0.14216157]
[1745928439315,11.08745309,149.21,149.2,0.14216157]
[1745928441725,11.08745309,149.21,149.2,6.70241286]
[1745928441899,11.08745309,149.21,149.2,6.84457443]
[1745928442228,11.08745309,149.24,149.21,0.14216157]
[1745928442397,11.08745309,149.23,149.21,0.14216157]
[1745928443731,11.08745309,149.22,149.21,0.14216157]
[1745928445130,11.08745309,149.22,149.21,6.84412524]
[1745928446626,26.0,149.24,149.21,6.84412524]
[1745928446829,1.5485,149.27,149.22,0.14216157]
[1745928447122,11.08745309,149.25,149.22,0.14216157]
[1745928447342,27.5485,149.27,149.22,0.14216157]
[1745928447511,1.5485,149.27,149.22,0.14216157]
[1745928447702,11.08745309,149.25,149.24,0.14216157]
[1745928448928,11.08745309,149.25,149.24,6.84277802]
[1745928450043,11.08745309,149.25,149.24,0.14216157]
[1745928451145,27.5485,149.27,149.24,0.14216157]
[1745928451332,11.08745309,149.25,149.24,0.14216157]
[1745928452842,11.08745309,149.25,149.24,6.84277802]
[1745928453442,11.08745309,149.25,149.24,0.14216157]
[1745928453650,11.08745309,149.25,149.24,6.84277802]
[1745928453859,27.5485,149.27,149.24,6.84277802]
[1745928454143,11.08745309,149.26,149.25,0.14216157]
[1745928457045,11.08745309,149.26,149.23,6.84317405]
[1745928457224,11.08745309,149.24,149.23,6.84317405]
[1745928457425,11.08745309,149.25,149.23,6.84317405]
[1745928458445,11.08745309,149.26,149.23,6.84317405]
[1745928459139,11.08745309,149.25,149.23,6.84317405]
[1745928460623,11.08745309,149.24,149.23,0.14216157]
[1745928463047,11.08745309,149.25,149.24,0.14216157]
[1745928464953,11.08745309,149.26,149.24,6.84277802]
[1745928465852,11.08745309,149.25,149.24,0.14216157]
[1745928469346,1.5485,149.27,149.24,0.14216157]
[1745928469855,11.08745309,149.25,149.24,6.84277802]
[1745928470951,1.5485,149.27,149.25,0.14216157]
[1745928471164,11.08745309,149.26,149.25,0.14216157]
[1745928477848,11.08745309,149.26,149.24,0.14216157]
[1745928478064,11.08745309,149.25,149.24,0.14216157]
[1745928480562,11.08745309,149.25,149.24,6.84277802]
[1745928481163,11.08745309,149.26,149.24,6.84277802]
[1745928482744,6.69839639,149.29,149.24,6.84277802]
[1745928482944,11.08745309,149.26,149.24,6.84277802]
[1745928484387,6.69792364,149.3,149.24,6.84277802]
[1745928484683,11.08745309,149.27,149.24,6.84277802]
[1745928484847,11.08745309,149.26,149.24,6.84277802]
[1745928486575,6.69792364,149.3,149.24,6.84277802]
[1745928486878,11.08745309,149.28,149.25,0.14216157]
[1745928487040,1.5248,149.31,149.27,0.14216157]
[1745928487475,11.08745309,149.29,149.27,0.14216157]
[1745928487786,11.08745309,149.29,149.28,6.698821]
[1745928488547,11.08745309,149.29,149.27,0.14216157]
[1745928488752,12.61225309,149.31,149.27,0.14216157]
[1745928488753,11.08745309,149.28,149.27,0.14216157]
[1745928497684,27.5248,149.31,149.28,0.14216157]
[1745928497858,11.08745309,149.29,149.28,0.14216157]
[1745928501501,82.9,149.3,149.28,6.84098257]
[1745928501801,82.9,149.3,149.29,0.14216157]
[1745928502093,93.98745309,149.3,149.29,0.14216157]
[1745928503597,93.98745309,149.3,149.25,13.04]
[1745928503766,11.08745309,149.27,149.25,13.04]
[1745928504157,11.08745309,149.27,149.26,0.14216157]
[1745928507762,11.08745309,149.27,149.25,0.14216157]
[1745928507962,11.08745309,149.26,149.25,0.14216157]
[1745928508809,11.08745309,149.26,149.23,6.70087132]
[1745928509093,11.08745309,149.25,149.23,6.70087132]
[1745928509291,11.08745309,149.25,149.24,0.14216157]
[1745928511599,11.08745309,149.26,149.25,0.14216157]
[1745928511775,82.9,149.28,149.25,0.14216157]
[1745928511980,93.98745309,149.27,149.25,0.14216157]
[1745928513275,11.08745309,149.26,149.25,0.14216157]
[1745928516182,11.08745309,149.26,149.25,6.84232907]
[1745928516800,82.9,149.27,149.25,6.84232907]
[1745928516801,93.98745309,149.27,149.25,6.84232907]
[1745928518901,82.9,149.27,149.25,6.84232907]
[1745928520482,93.98745309,149.27,149.25,6.84232907]
[1745928521300,11.08745309,149.26,149.25,0.14216157]
[1745928521711,11.08745309,149.26,149.22,6.70138212]
[1745928521712,82.9,149.25,149.22,6.70138212]
[1745928522013,11.08745309,149.24,149.22,6.70138212]
[1745928522206,11.08745309,149.24,149.23,0.14216157]
[1745928524189,82.9,149.23,149.2,13.14]
[1745928524387,11.08745309,149.21,149.19,6.70273248]
[1745928524613,11.08745309,149.21,149.2,0.14216157]
[1745928525515,11.08745309,149.21,149.2,6.70241286]
[1745928526215,11.08745309,149.21,149.2,6.84457443]
[1745928527615,11.08745309,149.21,149.2,0.14216157]
[1745928527820,11.08745309,149.21,149.2,6.84457443]
[1745928531214,82.9,149.22,149.21,0.14216157]
[1745928531427,93.98745309,149.22,149.2,0.14216157]
[1745928531599,11.08745309,149.21,149.2,0.14216157]
[1745928532419,11.08745309,149.21,149.2,6.84457443]
[1745928532719,11.08745309,149.21,149.2,0.14216157]
[1745928535310,82.9,149.21,149.2,0.14216157]
[1745928535508,93.98745309,149.21,149.2,0.14216157]
[1745928535704,93.98745309,149.21,149.2,6.84457443]
[1745928536426,82.9,149.21,149.2,6.84457443]
[1745928537302,82.9,149.21,149.2,17.93202752]
[1745928537927,93.98745309,149.25,149.21,0.14216157]
[1745928538096,93.98745309,149.25,149.21,11.22961466]
[1745928539324,93.98745309,149.25,149.22,6.70151454]
[1745928540425,11.08745309,149.24,149.22,6.70151454]
[1745928541625,93.98745309,149.25,149.22,6.70151454]
[1745928545208,11.08745309,149.24,149.22,6.70151454]
[1745928549007,93.98745309,149.25,149.22,6.70151454]
[1745928551142,11.08745309,149.24,149.22,6.70151454]
[1745928551515,7.08564936,149.24,149.22,6.70151454]
[1745928553726,82.9,149.25,149.22,6.70151454]
[1745928553925,7.08564936,149.24,149.22,6.70151454]
[1745928555537,82.9,149.25,149.22,6.70151454]
[1745928555839,89.98564936,149.25,149.22,6.70151454]
[1745928556939,82.9,149.25,149.22,6.70151454]
[1745928557113,89.98564936,149.25,149.22,6.70151454]
[1745928564626,89.98564936,149.25,149.23,0.14216157]
[1745928566660,89.98564936,149.25,149.24,6.84277802]
[1745928568053,82.9,149.25,149.24,6.84277802]
[1745928568934,82.9,149.29,149.25,0.14216157]
[1745928569139,89.98564936,149.28,149.25,0.14216157]
[1745928570657,7.08564936,149.26,149.25,0.14216157]
[1745928571367,7.08564936,149.26,149.25,6.84232907]
[1745928571658,6.80879425,149.26,149.25,6.84232907]
[1745928575756,6.80879425,149.26,149.25,0.14216157]
[1745928578739,6.80879425,149.26,149.25,6.84232907]
[1745928579260,6.80879425,149.26,149.25,0.14216157]
[1745928582165,82.9,149.27,149.26,0.14216157]
[1745928582349,89.98564936,149.27,149.26,0.14216157]
[1745928584770,82.9,149.26,149.22,13.04]
[1745928584968,7.08564936,149.23,149.22,13.04]
[1745928585138,7.08564936,149.23,149.2,6.70222816]
[1745928585343,7.08564936,149.23,149.21,0.14216157]
[1745928585558,7.08564936,149.23,149.21,6.8438452]
[1745928586444,7.08564936,149.22,149.2,6.70240817]
[1745928586858,7.08564936,149.22,149.21,0.14216157]
[1745928587048,7.08564936,149.22,149.19,6.76564657]
[1745928587260,7.08564936,149.21,149.2,0.14216157]
[1745928587968,7.08564936,149.21,149.19,0.063]
[1745928588169,7.08564936,149.2,149.19,0.063]
[1745928588343,7.08564936,149.2,149.19,0.20516157]
[1745928589565,7.08564936,149.2,149.19,6.90802369]
[1745928591012,7.08564936,149.2,149.19,0.20516157]
[1745928592666,7.08564936,149.2,149.19,6.90802369]
[1745928594583,7.08564936,149.21,149.19,6.90802369]
[1745928594775,89.98564936,149.22,149.19,6.90802369]
[1745928594966,89.98564936,149.22,149.19,13.99367305]
[1745928595177,82.9,149.22,149.19,13.99367305]
[1745928595569,89.98564936,149.22,149.19,13.99367305]
[1745928596384,89.98564936,149.22,149.19,6.90802369]
[1745928597798,7.08564936,149.21,149.19,6.90802369]
[1745928599683,82.9,149.22,149.19,0.063]
[1745928599684,7.08564936,149.2,149.19,0.063]
[1745928600282,7.08564936,149.2,149.19,0.20516157]
[1745928600703,7.08564936,149.2,149.19,0.063]
[1745928603520,11.0785268,149.2,149.19,0.063]
[1745928605391,95.6189268,149.21,149.19,0.063]
[1745928605596,84.5404,149.21,149.19,0.063]
[1745928605902,93.9785268,149.2,149.19,0.063]
[1745928619894,82.9,149.2,149.19,0.063]
[1745928621126,82.9,149.2,149.19,11.28368837]
[1745928621423,82.9,149.2,149.19,0.20516157]
[1745928621631,82.9,149.24,149.2,0.14216157]
[1745928622005,11.0785268,149.22,149.2,0.14216157]
[1745928623123,82.9,149.24,149.22,0.14216157]
[1745928625529,82.9,149.24,149.23,0.14216157]
[1745928627525,82.9,149.24,149.23,6.70106546]
[1745928627698,82.9,149.24,149.23,6.84322703]
[1745928630423,11.07034726,149.26,149.23,6.84322703]
[1745928631135,83.74173729,149.27,149.24,0.14216157]
[1745928631431,82.9,149.26,149.24,0.14216157]
[1745928632310,11.07034726,149.25,149.24,0.14216157]
[1745928636726,93.97034726,149.26,149.24,0.14216157]
[1745928636920,93.97034726,149.26,149.25,0.14216157]
[1745928637123,82.9,149.26,149.25,0.14216157]
[1745928637631,93.97034726,149.26,149.25,0.14216157]
[1745928638519,93.97034726,149.26,149.21,11.07034726]
[1745928638723,11.07034726,149.24,149.2,24.17034726]
[1745928638925,11.07034726,149.24,149.21,0.14216157]
[1745928640030,11.07034726,149.24,149.21,6.84391163]
[1745928641124,11.07034726,149.23,149.21,6.84391163]
[1745928641527,11.07034726,149.22,149.2,13.1]
[1745928641846,11.07034726,149.21,149.19,0.063]
[1745928642049,11.07034726,149.2,149.19,0.20516157]
[1745928642914,11.07034726,149.2,149.19,6.76586212]
[1745928643139,11.07034726,149.2,149.19,6.90802369]
[1745928644341,11.07034726,149.2,149.19,0.20516157]
[1745928644951,11.07034726,149.2,149.19,6.90802369]
[1745928645250,11.07034726,149.21,149.2,0.14216157]
[1745928649551,7.08882784,149.21,149.2,0.14216157]
[1745928651661,11.07638248,149.21,149.2,0.14216157]
[1745928652263,11.07638248,149.22,149.2,0.14216157]
[1745928652749,82.9,149.21,149.2,0.14216157]
[1745928653676,82.9,149.21,149.2,6.84457443]
[1745928653880,93.97638248,149.21,149.2,6.84457443]
[1745928654062,82.9,149.21,149.2,6.84457443]
[1745928657098,93.97638248,149.21,149.2,6.84457443]
[1745928658999,82.9,149.21,149.2,6.84457443]
[1745928664405,93.97638248,149.21,149.2,0.14216157]
[1745928665810,82.9,149.21,149.2,0.14216157]
[1745928666009,93.97638248,149.21,149.2,0.14216157]
[1745928666299,93.97638248,149.21,149.2,6.84457443]
[1745928666812,82.9,149.21,149.2,6.84457443]
[1745928666997,82.9,149.21,149.2,17.92095691]
[1745928669077,82.9,149.21,149.2,36.57060577]
[1745928670309,11.07638248,149.26,149.21,0.14216157]
[1745928670517,93.97638248,149.26,149.23,0.14216157]
[1745928671000,93.97638248,149.26,149.25,0.14216157]
[1745928673598,89.98481184,149.26,149.25,0.14216157]
[1745928674611,82.9,149.26,149.25,6.84232907]
[1745928674844,89.98481184,149.26,149.25,0.14216157]
[1745928677600,89.98481184,149.26,149.23,6.70106546]
[1745928677801,7.08481184,149.25,149.24,0.14216157]
[1745928680321,89.98481184,149.24,149.23,0.14216157]
[1745928684737,7.08481184,149.24,149.19,0.20516157]
[1745928685032,7.08481184,149.21,149.19,0.20516157]
[1745928685533,89.98481184,149.2,149.19,0.063]
[1745928685754,7.08481184,149.2,149.19,0.063]
[1745928687514,11.07967782,149.2,149.19,0.063]
[1745928688244,17.78209068,149.2,149.19,0.063]
[1745928688813,11.07967782,149.2,149.19,0.063]
[1745928692132,18.62382797,149.2,149.19,0.063]
[1745928693042,11.92141511,149.2,149.19,0.063]
[1745928705542,18.62382797,149.2,149.19,0.063]
[1745928707244,11.92141511,149.2,149.19,0.063]
[1745928708765,11.07967782,149.2,149.19,0.063]
[1745928709567,7.09149423,149.2,149.19,0.063]
[1745928719962,13.79390709,149.2,149.19,0.063]
[1745928721587,42.15988401,149.2,149.18,0.063]
[1745928721770,37.81990844,149.19,149.18,0.063]
[1745928722588,35.45747115,149.18,149.17,0.063]
[1745928723380,6.7037608,149.17,149.16,0.063]
[1745928723578,46.32759161,149.17,149.16,0.063]
[1745928728284,64.97724047,149.17,149.16,0.063]
[1745928728991,18.64964886,149.16,149.11,0.063]
[1745928729191,7.93323152,149.15,149.11,0.063]
[1745928730186,97.53789125,149.15,149.11,0.063]
[1745928730493,99.15089125,149.15,149.11,0.063]
[1745928730987,7.09149423,149.14,149.11,0.063]
[1745928732203,13.79660352,149.14,149.11,0.063]
[1745928736203,7.09149423,149.14,149.11,0.063]
[1745928737487,11.09026634,149.14,149.11,0.063]
[1745928738090,82.837,149.12,149.11,0.063]
[1745928738294,18.63801221,149.12,149.11,0.063]
[1745928742217,48.37792741,149.12,149.11,0.063]
[1745928743598,82.774,149.1,149.09,0.063]
[1745928743806,105.79626997,149.1,149.09,0.063]
[1745928744618,112.50317808,149.1,149.09,0.063]
[1745928746216,29.72917808,149.1,149.09,0.063]
[1745928759630,43.0634427,149.1,149.09,0.063]
[1745928768581,61.71309156,149.1,149.09,0.063]
[1745928768784,25.75260832,149.08,149.07,0.063]
[1745928768946,26.59434561,149.08,149.06,0.063]
[1745928769132,7.10295946,149.07,149.06,0.063]
[1745928770952,32.46086618,149.07,149.06,0.063]
[1745928771667,36.46284656,149.07,149.06,0.063]
[1745928772047,37.30458385,149.07,149.06,0.063]
[1745928773370,18.65493499,149.07,149.06,0.063]
[1745928780357,37.30458385,149.07,149.06,0.063]
[1745928781860,18.65493499,149.07,149.06,0.063]
[1745928782065,11.94667713,149.07,149.06,0.063]
[1745928784180,0.84173729,149.07,149.06,0.063]
[1745928784388,11.94667713,149.07,149.06,0.063]
[1745928785883,18.65493499,149.07,149.06,0.063]
[1745928791267,37.30458385,149.07,149.06,0.063]
[1745928793367,37.30458385,149.07,149.04,0.063]
[1745928793368,82.774,149.05,149.04,0.063]
[1745928793572,7.10609713,149.05,149.04,0.063]
[1745928794589,13.81525513,149.05,149.04,0.063]
[1745928799690,32.46490399,149.05,149.04,0.063]
[1745928799894,61.7310298,149.05,149.04,0.063]
[1745928800209,18.64964886,149.04,149.02,0.063]
[1745928800374,36.37222294,149.03,149.02,0.063]
[1745928800768,43.08228131,149.03,149.02,0.063]
[1745928801571,14.65789279,149.03,149.02,0.063]
[1745928802898,43.08228131,149.03,149.02,0.063]
[1745928803279,125.98228131,149.03,149.02,0.063]
[1745928805276,43.08228131,149.03,149.02,0.063]
[1745928808217,82.837,149.01,149.0,0.063]
[1745928808392,7.10609713,149.01,149.0,0.063]
[1745928809007,13.81705612,149.01,149.0,0.063]
[1745928813636,7.10609713,149.01,149.0,0.063]
[1745928814092,7.94783442,149.01,149.0,0.063]
[1745928814302,14.65879341,149.01,149.0,0.063]
[1745928822526,6.71065656,149.02,149.0,0.063]
[1745928822740,7.10609713,149.01,149.0,0.063]
[1745928822902,7.94783442,149.01,149.0,0.063]
[1745928823518,14.65879341,149.01,149.0,0.063]
[1745928828734,14.65879341,149.01,149.0,0.063]
[1745928829827,6.71050865,149.02,149.0,0.063]
[1745928830414,7.10609713,149.02,149.0,0.063]
[1745928831333,7.10609713,149.01,149.0,0.063]
[1745928834426,82.9,149.03,149.0,0.063]
[1745928834427,7.10609713,149.02,149.0,0.063]
[1745928834633,90.00609713,149.02,149.0,0.063]
[1745928836531,82.9,149.02,149.0,0.063]
[1745928836743,82.9,149.02,149.0,7.16909713]
[1745928837056,82.9,149.02,149.0,0.063]
[1745928838256,82.9,149.02,149.01,0.14216157]
[1745928838746,82.9,149.02,149.01,7.2482587]
[1745928839538,82.9,149.04,149.01,7.2482587]
[1745928839734,82.9,149.04,149.01,13.95879518]
[1745928840827,82.9,149.04,149.03,7.2482587]
[1745928841559,82.9,149.07,149.03,13.8503587]
[1745928841854,82.9,149.07,149.05,7.10609713]
[1745928842959,82.9,149.07,149.06,7.2482587]
[1745928843259,0.03,149.08,149.06,7.2482587]
[1745928843452,0.03,149.08,149.07,7.2482587]
[1745928843652,0.03,149.08,149.07,11.23363269]
[1745928845163,0.03,149.08,149.07,24.32469055]
[1745928854384,0.03,149.08,149.07,11.23363269]
[1745928855106,0.03,149.08,149.07,0.14216157]
[1745928855955,0.03,149.08,149.07,11.23363269]
[1745928857491,0.03,149.08,149.07,17.94189055]
[1745928863602,0.03,149.08,149.07,13.94860022]
[1745928875898,0.03,149.08,149.07,32.59824908]
[1745928876097,0.03,149.1,149.09,18.64964886]
[1745928876301,0.03,149.1,149.09,54.28271438]
[1745928877513,0.03,149.11,149.1,22.30491739]
[1745928878726,1e-08,149.11,149.1,47.66147436]
[1745928885025,1e-08,149.11,149.1,36.58009645]
[1745928889607,1e-08,149.11,149.1,6.84906968]
[1745928889934,1e-08,149.11,149.09,6.70717738]
[1745928890236,1e-08,149.11,149.1,0.14216157]
[1745928896816,11.08137792,149.11,149.1,0.14216157]
[1745928900027,1e-08,149.11,149.1,0.14216157]
[1745928902012,11.08137792,149.11,149.08,0.14216157]
[1745928902627,1e-08,149.11,149.08,11.22353948]
[1745928902925,1e-08,149.11,149.1,0.14216157]
[1745928905451,100.68786107,149.11,149.06,19.74860197]
[1745928905620,7.10038274,149.09,149.06,19.74860197]
[1745928905823,7.10038274,149.09,149.07,0.14216157]
[1745928914461,7.10038274,149.09,149.06,13.04]
[1745928914664,7.10038274,149.07,149.06,13.18216157]
[1745928914963,7.10038274,149.07,149.04,0.063]
[1745928915259,7.10038274,149.06,149.04,0.063]
[1745928915458,7.10038274,149.05,149.04,0.063]
[1745928919659,17.81042975,149.05,149.04,0.063]
[1745928921144,19.41442975,149.05,149.04,0.063]
[1745928929259,47.01519881,149.08,149.04,0.063]
[1745928929260,11.10127175,149.06,149.04,0.063]
[1745928929472,21.1081,149.09,149.04,0.063]
[1745928929473,11.10127175,149.07,149.04,0.20516157]
[1745928931160,11.10127175,149.07,149.04,6.91467599]
[1745928932353,11.10127175,149.07,149.04,0.20516157]
[1745928932556,11.10127175,149.07,149.04,6.91472673]
[1745928933079,11.10127175,149.07,149.04,0.20516157]
[1745928934263,82.9,149.06,149.04,0.20516157]
[1745928935572,82.9,149.06,149.04,6.91475912]
[1745928935878,82.9,149.06,149.05,11.24343332]
[1745928937470,82.9,149.06,149.05,17.95259132]
[1745928940069,82.9,149.08,149.06,0.14216157]
[1745928941075,94.00127175,149.08,149.06,0.14216157]
[1745928941371,94.00127175,149.08,149.06,6.85086368]
[1745928942872,94.00127175,149.08,149.06,0.14216157]
[1745928944071,82.9,149.08,149.06,6.85082613]
[1745928944370,82.9,149.08,149.06,17.95209788]
[1745928945476,82.9,149.08,149.06,6.85082613]
[1745928945654,82.9,149.08,149.06,13.95046499]
[1745928946074,82.9,149.08,149.06,6.85082613]
[1745928947372,89.99963886,149.08,149.06,6.85082613]
[1745928947582,11.09729491,149.07,149.04,6.77245899]
[1745928947766,11.09729491,149.07,149.05,0.14216157]
[1745928949786,11.09729491,149.06,149.04,0.20516157]
[1745928953680,93.99729491,149.07,149.04,0.20516157]
[1745928955066,100.70557523,149.07,149.04,0.20516157]
[1745928955264,11.09729491,149.05,149.04,0.063]
[1745928957726,17.80645291,149.05,149.04,0.063]
[1745928958799,43.80645291,149.05,149.04,0.063]
[1745928961536,54.57876005,149.05,149.04,0.063]